bitfinex-derivatives/quotes_ETHF0:USTF0_20210401
["timestamp","ask_amount","ask_price","bid_price","bid_amount"]
[1617241897629,86.82365,1932.3,1932.2,2.90695]
[1617241898028,86.82365,1932.3,1932.0,83.9167]
[1617241899530,2.90695,1932.1,1931.5,2.90695]
[1617241899730,64.2835,1932.0,1931.5,2.90695]
[1617241899931,15.8486,1932.0,1930.0,5.25431842]
[1617241900136,14.8246,1932.0,1930.0,5.25431842]
[1617241900332,78.9246,1932.0,1931.0,64.1]
[1617241901633,2.90695,1931.1,1931.0,67.00695]
[1617241901833,3.99085,1931.1,1931.0,67.00695]
[1617241902936,2.90695,1931.1,1931.0,67.00695]
[1617241905237,2.90695,1931.1,1931.0,64.1]
[1617241906939,2.90695,1931.1,1931.0,64.3988421]
[1617241907140,78.9246,1932.0,1931.0,64.3988421]
[1617241907739,78.9246,1932.0,1931.3,2.90695]
[1617241909742,2.90695,1931.4,1931.3,2.90695]
[1617241910141,2.90695,1931.4,1931.3,3.20463529]
[1617241920253,14.8246,1932.0,1931.3,3.20463529]
[1617241920453,14.8246,1932.0,1931.4,0.29595294]
[1617241920656,13.9074,1932.0,1931.4,0.29595294]
[1617241921254,13.9074,1932.0,1931.8,65.9052]
[1617241921856,2.90695,1931.9,1931.8,65.9052]
[1617241925961,2.90695,1931.9,1931.5,2.90695]
[1617241926565,2.90695,1931.9,1931.6,0.29537274]
[1617241926762,2.90695,1931.9,1931.6,1.37497274]
[1617241927163,2.90695,1931.9,1931.7,0.29513296]
[1617241927864,2.90695,1931.9,1931.8,2.90695]
[1617241928465,2.90695,1931.9,1931.8,3.20202104]
[1617241929565,13.9074,1932.0,1931.8,3.20202104]
[1617241929967,13.9074,1932.0,1931.9,0.29483094]
[1617241932769,24.9074,1932.0,1931.9,0.29483094]
[1617241936872,24.9074,1932.0,1931.9,6.86779135]
[1617241939275,24.9074,1932.0,1931.9,0.29483094]
[1617241946686,24.9074,1932.0,1931.9,6.86071194]
[1617241950189,24.9074,1932.0,1931.9,0.29483094]
[1617241950589,24.9074,1932.0,1931.9,6.8588398]
[1617241950789,24.9074,1932.0,1931.9,0.29483094]
[1617241953393,24.9074,1932.0,1931.9,6.85757161]
[1617241955093,24.9074,1932.0,1931.9,0.29483094]
[1617241956397,24.9074,1932.0,1931.8,4.16165]
[1617241956597,24.9074,1932.0,1931.9,5.3707358]
[1617241957098,24.9074,1932.0,1931.8,8.27927261]
[1617241958100,2.90695,1931.9,1931.8,8.27927261]
[1617241958704,2.90695,1931.9,1931.8,2.90695]
[1617241958904,2.90695,1931.9,1931.8,7.08863211]
[1617241960105,2.90695,1931.9,1931.8,4.18168211]
[1617241960505,2.90695,1931.9,1931.7,4.18283572]
[1617241962907,2.90695,1931.9,1931.8,85.0007]
[1617241965209,2.90695,1931.9,1931.5,4.18397448]
[1617241966009,2.90695,1931.6,1931.5,4.18397448]
[1617241967013,3.93575,1931.6,1931.5,4.18397448]
[1617241967414,2.90695,1931.6,1931.5,4.18397448]
[1617241967614,2.90695,1931.6,1931.5,0.29478942]
[1617241969916,24.9074,1932.0,1931.5,1.14868942]
[1617241970117,2.90695,1931.6,1931.5,5.03990053]
[1617241970516,2.90695,1931.6,1931.5,0.8539]
[1617241971116,2.90695,1931.6,1931.4,7.09355938]
[1617241973618,2.90695,1931.6,1931.4,2.90695]
[1617241974021,2.90695,1931.6,1931.4,7.09539226]
[1617241974220,2.90695,1931.6,1931.4,2.90695]
[1617241980721,2.90695,1931.6,1931.5,80.4448]
[1617241981121,2.90695,1931.6,1931.5,82.26478142]
[1617241981724,2.90695,1931.6,1931.5,1.81998142]
[1617241982121,2.90695,1931.6,1931.4,2.90695]
[1617241990031,2.90695,1931.6,1931.3,4.1885279]
[1617241990231,2.90695,1931.4,1931.3,4.1885279]
[1617241990632,2.90695,1931.4,1931.3,4.48189668]
[1617241991633,2.90695,1931.4,1931.3,4.1885279]
[1617241992235,2.90695,1931.4,1931.3,7.0954779]
[1617241992634,2.90695,1931.4,1931.3,4.1885279]
[1617241994337,2.90695,1931.4,1931.3,7.0954779]
[1617241994736,2.90695,1931.4,1931.3,4.1885279]
[1617241994936,2.90695,1931.4,1931.3,69.721]
[1617241995436,2.90695,1931.4,1931.3,71.5410652]
[1617242003153,2.90695,1931.4,1931.3,1.8200652]
[1617242003554,2.90695,1931.4,1931.1,4.18798237]
[1617242003954,15.0104,1931.3,1931.1,4.18798237]
[1617242004356,2.90695,1931.2,1931.1,4.18798237]
[1617242004957,2.90695,1931.2,1931.1,4.48104984]
[1617242007162,2.90695,1931.2,1931.1,0.29306747]
[1617242010162,2.90695,1931.2,1931.1,5.67694728]
[1617242022079,15.0104,1931.3,1931.1,5.67694728]
[1617242022279,15.0104,1931.3,1931.2,82.33]
[1617242022480,15.0104,1931.3,1931.2,85.23695]
[1617242022681,15.0104,1931.3,1931.2,87.05689728]
[1617242022882,15.0104,1931.3,1931.2,87.35047865]
[1617242024686,15.0104,1931.3,1931.2,92.73254893]
[1617242024886,15.0104,1931.3,1931.2,87.35047865]
[1617242026688,15.0104,1931.3,1931.2,93.92251505]
[1617242026990,15.0104,1931.3,1931.2,87.35047865]
[1617242030697,15.0104,1931.3,1931.2,89.77643783]
[1617242032098,15.0104,1931.3,1931.2,97.5282652]
[1617242036104,15.0104,1931.3,1931.2,15.1982652]
[1617242036305,15.0104,1931.3,1931.2,10.95235874]
[1617242036709,15.0104,1931.3,1931.2,3.20053137]
[1617242045716,15.0104,1931.3,1931.2,4.50353137]
[1617242046116,11.0,1932.0,1931.2,4.50353137]
[1617242046317,11.0,1932.0,1931.2,13.44285237]
[1617242046517,11.0,1932.0,1931.3,0.29168309]
[1617242046719,11.0,1932.0,1931.9,2.90695]
[1617242047320,11.0,1932.0,1931.9,3.19853892]
[1617242052024,11.0,1932.0,1931.9,9.7443222]
[1617242057231,11.0,1932.0,1931.9,3.19853892]
[1617242063738,11.0,1932.0,1931.9,8.53455516]
[1617242064339,11.0,1932.0,1931.9,3.19853892]
[1617242069848,11.0,1932.0,1931.9,8.52902978]
[1617242070249,11.0,1932.0,1931.9,3.19853892]
[1617242072253,10.9263,1932.0,1931.9,3.19853892]
[1617242075159,10.9263,1932.0,1931.9,8.52593252]
[1617242077058,10.9263,1932.0,1931.9,3.19853892]
[1617242077860,10.9263,1932.0,1931.9,8.52501719]
[1617242078259,10.9263,1932.0,1931.9,3.19853892]
[1617242080160,10.9263,1932.0,1931.9,8.52607387]
[1617242083562,10.9263,1932.0,1931.9,3.19853892]
[1617242085163,9.8933,1932.0,1931.9,3.19853892]
[1617242085964,9.8233,1932.0,1931.9,3.19853892]
[1617242087067,9.8233,1932.0,1931.9,8.52416977]
[1617242087267,9.8233,1932.0,1931.9,3.19853892]
[1617242088068,9.8233,1932.0,1931.9,8.52643271]
[1617242088268,9.8233,1932.0,1931.9,9.7141725]
[1617242092271,9.6692,1932.0,1931.9,9.7141725]
[1617242092471,9.5924,1932.0,1931.9,9.7141725]
[1617242096679,9.5924,1932.0,1931.9,3.19853892]
[1617242097981,8.5899,1932.0,1931.9,3.19853892]
[1617242098181,8.5899,1932.0,1931.9,9.70696948]
[1617242098780,8.5899,1932.0,1931.9,3.19853892]
[1617242099380,8.5899,1932.0,1931.9,9.70922476]
[1617242100183,8.5899,1932.0,1931.9,3.19853892]
[1617242101384,7.5553,1932.0,1931.9,3.19853892]
[1617242101584,6.7827,1932.0,1931.9,3.19853892]
[1617242102187,6.6747,1932.0,1931.9,3.19853892]
[1617242103188,6.2704,1932.0,1931.9,3.19853892]
[1617242103987,6.2704,1932.0,1931.9,10.89758299]
[1617242104391,6.2704,1932.0,1931.9,3.19853892]
[1617242104590,6.2704,1932.0,1931.9,10.89509136]
[1617242105692,5.4996,1932.0,1931.9,10.89509136]
[1617242109293,5.4996,1932.0,1931.9,3.19853892]
[1617242111394,5.4996,1932.0,1931.9,12.08355462]
[1617242111694,4.4731,1932.0,1931.9,12.08355462]
[1617242112494,3.1689,1932.0,1931.9,12.08355462]
[1617242112693,0.5244,1932.0,1931.9,3.19853892]
[1617242114095,0.5244,1932.0,1931.9,12.07922267]
[1617242115498,0.5244,1932.0,1931.9,3.19853892]
[1617242115899,0.5244,1932.0,1931.9,12.07923766]
[1617242116900,0.5244,1932.0,1931.9,3.19853892]
[1617242122209,0.5244,1932.0,1931.9,13.27047189]
[1617242123711,0.5244,1932.0,1931.9,3.19853892]
[1617242137122,1.5766,1932.0,1931.9,3.19853892]
[1617242137922,1.5766,1932.0,1931.9,12.07166719]
[1617242138123,1.5766,1932.0,1931.9,3.19853892]
[1617242138525,1.5766,1932.0,1931.9,5.01722946]
[1617242138922,1.5766,1932.0,1931.9,12.71704892]
[1617242138923,69.0226,1932.0,1931.9,12.71704892]
[1617242139122,69.0226,1932.0,1931.9,3.19853892]
[1617242142825,69.0226,1932.0,1931.9,10.90638388]
[1617242143025,1.5766,1932.0,1931.9,10.90638388]
[1617242143224,0.5244,1932.0,1931.9,10.90638388]
[1617242143627,0.5244,1932.0,1931.9,3.19853892]
[1617242146529,1.7765,1932.0,1931.9,3.19853892]
[1617242147132,1.7765,1932.0,1931.9,9.725367]
[1617242147534,1.7765,1932.0,1931.9,3.19853892]
[1617242147733,4.68345,1932.0,1931.9,3.19853892]
[1617242148132,72.71225,1932.0,1931.9,3.19853892]
[1617242148334,72.71225,1932.0,1931.9,9.72626508]
[1617242149133,73.76255,1932.0,1931.9,9.72626508]
[1617242149534,73.76255,1932.0,1931.9,3.19853892]
[1617242150534,3.43135,1932.0,1931.9,3.19853892]
[1617242151136,3.43135,1932.0,1931.9,9.72589875]
[1617242155138,3.43135,1932.0,1931.9,3.19853892]
[1617242155338,3.43135,1932.0,1931.9,9.72610262]
[1617242156740,3.43135,1932.0,1931.9,8.53219847]
[1617242157340,84.71665,1932.0,1931.9,8.53219847]
[1617242157940,84.71665,1932.0,1931.9,8.24060955]
[1617242160042,84.71665,1932.0,1931.9,2.90695]
[1617242160343,84.71665,1932.0,1931.9,8.23993675]
[1617242160743,84.71665,1932.0,1931.9,2.90695]
[1617242161342,84.71665,1932.0,1931.9,8.24025528]
[1617242162043,84.71665,1932.0,1931.9,2.90695]
[1617242163043,3.43135,1932.0,1931.9,2.90695]
[1617242163844,3.43135,1932.0,1931.9,8.87571039]
[1617242164745,3.43135,1932.0,1931.9,4.72647501]
[1617242165148,3.43135,1932.0,1931.9,8.87354771]
[1617242165949,3.43135,1932.0,1931.9,5.96659771]
[1617242166950,3.43135,1932.0,1931.9,6.84409771]
[1617242167152,3.43135,1932.0,1931.9,2.69702501]
[1617242167851,3.43135,1932.0,1931.9,6.84021394]
[1617242168050,3.43135,1932.0,1931.9,9.74716394]
[1617242168652,0.5244,1932.0,1931.9,9.74716394]
[1617242169456,0.5244,1932.0,1931.9,10.03338629]
[1617242169663,0.5244,1932.0,1931.9,4.07067235]
[1617242169958,0.5244,1932.0,1931.9,10.57272214]
[1617242171458,0.5244,1932.0,1931.9,4.07067235]
[1617242171861,0.5244,1932.0,1931.9,10.57237604]
[1617242172057,0.5244,1932.0,1931.9,4.07067235]
[1617242177163,0.5244,1932.0,1931.9,10.56611924]
[1617242177963,0.5244,1932.0,1931.9,4.07067235]
[1617242178563,0.5244,1932.0,1931.9,11.74386456]
[1617242182763,0.5244,1932.0,1931.9,4.07067235]
[1617242183965,0.5244,1932.0,1931.9,11.73531897]
[1617242184265,0.5244,1932.0,1931.9,4.07067235]
[1617242184668,0.5244,1932.0,1931.9,11.73355031]
[1617242184967,0.5244,1932.0,1931.9,4.07067235]
[1617242188172,0.5244,1932.0,1931.9,11.7209647]
[1617242189272,0.5244,1932.0,1931.9,4.07067235]
[1617242190272,0.5244,1932.0,1931.9,3.19317235]
[1617242191872,0.5244,1932.0,1931.9,4.54097235]
[1617242192576,0.5244,1932.0,1931.9,12.18420727]
[1617242204886,0.5244,1932.0,1931.9,4.54097235]
[1617242215905,0.5244,1932.0,1931.9,13.2849964]
[1617242217106,0.5244,1932.0,1931.9,4.54097235]
[1617242221811,0.5244,1932.0,1931.9,13.28274729]
[1617242225514,0.5244,1932.0,1931.9,4.54097235]
[1617242235833,0.5244,1932.0,1931.9,3.19317235]
[1617242236034,0.5244,1932.0,1931.9,11.9476597]
[1617242236934,0.5244,1932.0,1931.9,13.2880597]
[1617242237936,0.5244,1932.0,1931.9,4.53357235]
[1617242238336,0.5244,1932.0,1931.9,13.28884034]
[1617242239339,0.5244,1932.0,1931.9,4.53357235]
[1617242239939,0.5244,1932.0,1931.9,3.19317235]
[1617242244550,0.5244,1932.0,1931.9,4.12787235]
[1617242245149,15.2108,1933.7,1931.9,4.12787235]
[1617242245552,15.2108,1933.7,1933.5,4.08781075]
[1617242245749,15.2108,1933.7,1933.6,4.08788342]
[1617242246150,15.2108,1933.7,1933.6,4.37421643]
[1617242246549,15.2108,1933.7,1933.6,7.28116643]
[1617242246955,15.2108,1933.7,1933.6,3.19328301]
[1617242248450,15.2108,1933.7,1933.6,8.45097767]
[1617242248849,15.2108,1933.7,1933.6,3.19328301]
[1617242249050,15.2108,1933.7,1933.6,8.45085056]
[1617242254552,15.2108,1933.7,1933.6,10.26841619]
[1617242255253,15.2108,1933.7,1933.6,9.10369266]
[1617242256055,15.2108,1933.7,1933.6,5.01084864]
[1617242256254,15.2108,1933.7,1933.6,9.10465577]
[1617242256455,29.2108,1933.7,1933.6,9.10465577]
[1617242256656,29.2108,1933.7,1933.6,5.01084864]
[1617242257957,29.2108,1933.7,1933.6,9.10416879]
[1617242258355,29.2108,1933.7,1933.6,7.28660316]
[1617242261764,29.2108,1933.7,1933.6,3.19328301]
[1617242262767,32.11775,1933.7,1933.6,3.19328301]
[1617242262970,32.11775,1933.7,1933.6,7.28897535]
[1617242263368,32.11775,1933.7,1933.6,3.19328301]
[1617242266572,29.2108,1933.7,1933.6,3.19328301]
[1617242267176,29.2108,1933.7,1933.6,8.45518716]
[1617242270284,29.2108,1933.7,1933.6,3.19328301]
[1617242271084,29.2108,1933.7,1933.6,9.6211133]
[1617242278794,29.2108,1933.7,1933.6,3.19328301]
[1617242280495,29.2108,1933.7,1933.6,9.61684977]
[1617242280895,29.2108,1933.7,1933.6,3.19328301]
[1617242285503,29.2108,1933.7,1933.6,9.61954888]
[1617242287703,94.9786,1933.7,1933.6,9.61954888]
[1617242287907,94.9786,1933.7,1933.6,3.19328301]
[1617242288308,94.9786,1933.7,1933.6,8.45484063]
[1617242288707,94.9786,1933.7,1933.6,3.19328301]
[1617242289305,29.2108,1933.7,1933.6,3.19328301]
[1617242292309,29.2108,1933.7,1933.6,9.6212063]
[1617242294410,29.2108,1933.7,1933.6,72.0578063]
[1617242295011,29.2108,1933.7,1933.6,73.87534199]
[1617242295913,29.2108,1933.7,1933.6,11.43874199]
[1617242296111,29.2108,1933.7,1933.6,5.0108187]
[1617242296512,29.2108,1933.7,1933.6,3.19328301]
[1617242300319,29.2108,1933.7,1933.6,4.21678301]
[1617242301121,29.2108,1933.7,1933.6,11.80914653]
[1617242302119,30.3377,1933.7,1933.6,10.78564653]
[1617242302523,30.3377,1933.7,1933.6,3.19328301]
[1617242304626,29.2108,1933.7,1933.6,3.19328301]
[1617242310631,29.2108,1933.7,1933.6,4.36678301]
[1617242311432,14.0,1933.7,1933.6,4.36678301]
[1617242311834,14.0,1933.7,1933.6,11.97979368]
[1617242312832,14.0,1933.7,1933.6,4.36678301]
[1617242313834,14.0,1933.7,1933.6,11.97615573]
[1617242314236,14.0,1933.7,1933.6,4.36678301]
[1617242314833,14.0,1933.7,1933.6,3.19328301]
[1617242315033,14.0,1933.7,1933.6,10.79993356]
[1617242315835,14.0,1933.7,1933.6,3.19328301]
[1617242318936,14.0,1933.7,1933.6,10.7961517]
[1617242320538,14.0,1933.7,1933.6,3.19328301]
[1617242321737,14.0,1933.7,1933.6,10.79562542]
[1617242321937,14.0,1933.7,1933.6,3.19328301]
[1617242333950,14.0,1933.7,1933.6,11.95528945]
[1617242334750,14.0,1933.7,1933.6,3.19328301]
[1617242338552,14.0,1933.7,1933.6,11.95267629]
[1617242338952,14.0,1933.7,1933.6,3.19328301]
[1617242340953,14.0,1933.7,1933.6,11.95232535]
[1617242341754,14.0,1933.7,1933.6,3.19328301]
[1617242363781,0.8931,1934.6,1933.6,4.51198301]
[1617242364182,0.8931,1934.6,1933.7,1.1]
[1617242364381,0.8931,1934.6,1933.8,0.28468418]
[1617242364683,0.8931,1934.6,1934.5,2.90695]
[1617242364883,0.8931,1934.6,1934.5,4.29225964]
[1617242365282,0.8931,1934.6,1934.5,15.32732277]
[1617242365883,14.3294,1936.4,1934.5,15.32732277]
[1617242366285,14.3294,1936.4,1936.3,5.22542175]
[1617242366484,14.3294,1936.4,1936.3,6.17542175]
[1617242366684,14.3294,1936.4,1936.3,9.08237175]
[1617242366885,14.3294,1936.4,1936.3,9.36713316]
[1617242367090,14.3381,1936.5,1936.3,4.14171141]
[1617242367287,14.3381,1936.5,1936.3,9.36754674]
[1617242367488,13.3983,1936.5,1936.3,9.36754674]
[1617242367688,13.3983,1936.5,1936.4,0.28465221]
[1617242367887,2.90695,1937.1,1936.5,62.6231]
[1617242368087,2.90695,1937.1,1936.5,66.68692929]
[1617242368488,2.90695,1937.1,1936.6,2.09980561]
[1617242368690,2.90695,1937.1,1937.0,2.90695]
[1617242371392,1.0309,1938.5,1937.0,2.90695]
[1617242371592,1.0309,1938.5,1937.6,73.221]
[1617242372792,2.90695,1937.7,1937.6,73.221]
[1617242374795,2.90695,1937.7,1937.6,76.12795]
[1617242379599,2.90695,1937.7,1937.6,2.90695]
[1617242398327,3.87805,1937.7,1937.6,2.90695]
[1617242398526,70.7244,1937.6,1936.6,70.7244]
[1617242398725,14.5229,1937.6,1934.8,1.1]
[1617242398926,83.6284,1937.0,1936.7,2.90695]
[1617242399325,83.6284,1937.0,1935.6,82.7263]
[1617242399726,0.9021,1937.0,1934.8,1.1]
[1617242399930,69.9095,1936.1,1934.8,1.1]
[1617242400326,71.1533,1936.1,1934.8,1.1]
[1617242401029,5.17895,1936.1,1936.0,2.90695]
[1617242401230,4.15075,1936.1,1936.0,2.90695]
[1617242402330,2.90695,1936.1,1936.0,2.90695]
[1617242402730,14.3839,1936.9,1936.0,67.20815]
[1617242402932,14.3839,1936.9,1936.6,2.90695]
[1617242403331,14.3839,1936.9,1936.0,64.3012]
[1617242404933,14.3839,1936.9,1936.5,2.90695]
[1617242406034,14.3839,1936.9,1936.0,64.3012]
[1617242406934,2.90695,1936.5,1936.4,2.90695]
[1617242409036,2.90695,1936.7,1936.4,2.90695]
[1617242409842,14.3839,1936.9,1936.7,82.7252]
[1617242410941,14.3839,1936.9,1936.8,2.90695]
[1617242411141,2.90695,1937.2,1936.8,3.77295]
[1617242413045,2.90695,1937.2,1937.1,2.90695]
[1617242414845,14.0902,1938.3,1937.1,2.90695]
[1617242415048,14.0902,1938.3,1937.5,2.90695]
[1617242416046,14.0902,1938.3,1936.8,0.866]
[1617242416247,14.0902,1938.3,1937.4,72.0863]
[1617242418950,14.0902,1938.3,1937.5,2.90695]
[1617242421050,14.0902,1938.3,1937.8,2.90695]
[1617242421251,14.0902,1938.3,1937.8,3.85345]
[1617242422050,14.0902,1938.3,1938.0,60.017]
[1617242422550,15.132,1938.3,1938.0,60.017]
[1617242422950,2.90695,1938.1,1938.0,60.017]
[1617242424554,3.94865,1938.1,1938.0,60.017]
[1617242425052,3.94865,1938.1,1938.0,62.92395]
[1617242425252,2.90695,1938.1,1938.0,62.92395]
[1617242426254,3.94925,1938.1,1938.0,62.92395]
[1617242427255,2.90695,1938.1,1938.0,62.92395]
[1617242431558,14.0902,1938.3,1938.0,62.92395]
[1617242433060,16.99715,1938.3,1938.2,2.90695]
[1617242433262,16.99715,1938.3,1938.2,4.15175]
[1617242436164,2.90695,1938.3,1938.2,4.15175]
[1617242436767,15.2091,1938.9,1938.2,4.15175]
[1617242437169,15.2091,1938.9,1938.8,2.90695]
[1617242437366,15.2091,1938.9,1938.8,4.00575]
[1617242437767,15.2091,1938.9,1938.8,1.0988]
[1617242438371,15.2091,1938.9,1938.2,1.2448]
[1617242438567,15.2091,1938.9,1937.9,83.9255]
[1617242439168,15.2091,1938.9,1938.5,2.90695]
[1617242439569,15.2091,1938.9,1938.2,1.3893]
[1617242439869,15.2091,1938.9,1938.4,64.1745]
[1617242440669,14.1502,1938.8,1938.4,64.1745]
[1617242441072,2.90695,1938.7,1938.5,2.90695]
[1617242442170,2.90695,1938.7,1938.4,64.1745]
[1617242443072,14.1502,1938.8,1938.5,2.90695]
[1617242443272,14.1502,1938.8,1938.4,64.1745]
[1617242445073,2.90695,1938.5,1938.4,64.1745]
[1617242448978,14.1502,1938.8,1938.4,64.1745]
[1617242449179,14.1502,1938.8,1938.7,2.90695]
[1617242450880,8.09305,1938.6,1938.4,64.1745]
[1617242451080,2.90695,1938.5,1938.4,67.08145]
[1617242451983,2.90695,1938.5,1938.4,64.1745]
[1617242453182,2.90695,1938.5,1938.4,67.08145]
[1617242453584,2.90695,1938.5,1938.4,71.16402628]
[1617242454583,2.90695,1938.5,1938.4,67.08145]
[1617242455883,27.1502,1938.8,1938.4,67.08145]
[1617242456083,27.1502,1938.8,1938.4,3.96005]
[1617242456284,27.1502,1938.8,1938.5,5.89684631]
[1617242456684,27.1502,1938.8,1938.6,5.24383062]
[1617242457285,27.1502,1938.8,1938.7,2.90695]
[1617242457485,27.1502,1938.8,1938.7,8.14995574]
[1617242459287,27.1502,1938.8,1938.7,8.43041064]
[1617242459488,27.1502,1938.8,1938.7,3.1874049]
[1617242461188,27.1502,1938.8,1938.7,9.58963081]
[1617242463690,27.1502,1938.8,1938.7,3.1874049]
[1617242464989,27.1502,1938.8,1938.7,5.0010021]
[1617242467394,27.1502,1938.8,1938.7,3.1874049]
[1617242479311,27.1502,1938.8,1938.7,10.7585984]
[1617242480914,27.1502,1938.8,1938.7,3.1874049]
[1617242494130,13.0,1938.8,1938.7,3.1874049]
[1617242521462,13.0,1938.8,1938.7,11.94001446]
[1617242522563,13.0,1938.8,1938.7,3.1874049]
[1617242523968,13.0,1938.8,1938.7,11.9458272]
[1617242525568,13.0,1938.8,1938.7,97.1909272]
[1617242525969,13.0,1938.8,1938.7,101.4222693]
[1617242526369,13.0,1938.8,1938.7,99.00435953]
[1617242526571,13.0,1938.8,1938.7,92.66391535]
[1617242528174,26.9982,1938.8,1938.7,92.66391535]
[1617242528976,26.9982,1938.8,1938.7,100.26193069]
[1617242529277,26.9982,1938.8,1938.7,92.66391535]
[1617242529577,26.9982,1938.8,1938.7,100.26223803]
[1617242532181,26.9982,1938.8,1938.7,92.66391535]
[1617242532582,26.9982,1938.8,1938.7,7.41881535]
[1617242532784,28.0564,1938.8,1938.7,4.51186535]
[1617242532983,28.0564,1938.8,1937.7,63.3238]
[1617242532984,28.0564,1938.8,1938.4,7.60741186]
[1617242533383,28.0564,1938.8,1938.7,5.27112103]
[1617242533583,28.0564,1938.8,1937.7,63.3238]
[1617242533784,28.0564,1938.8,1937.8,2.90695]
[1617242535186,75.7153,1938.3,1937.8,2.90695]
[1617242535388,76.9957,1938.3,1937.8,2.90695]
[1617242535786,2.90695,1937.9,1937.8,2.90695]
[1617242537788,2.90695,1937.9,1937.6,2.90695]
[1617242538188,14.7597,1937.8,1937.6,2.90695]
[1617242539890,2.90695,1937.7,1937.6,2.90695]
[1617242541593,2.90695,1937.7,1937.6,3.19050481]
[1617242544196,14.7597,1937.8,1937.6,3.19050481]
[1617242544798,14.7597,1937.8,1937.7,0.28232755]
[1617242545998,17.66665,1937.8,1937.7,0.28232755]
[1617242546399,17.65665,1937.8,1937.7,0.28232755]
[1617242548303,17.65665,1937.8,1937.5,0.28269474]
[1617242549203,17.65665,1937.8,1937.6,72.4244]
[1617242549606,17.65665,1937.8,1937.7,0.28265443]
[1617242550404,17.65665,1937.8,1937.5,0.28263031]
[1617242551009,17.65665,1937.8,1937.6,67.7066]
[1617242551608,17.65665,1937.8,1937.7,0.28259876]
[1617242551907,17.65665,1937.8,1937.7,3.18954876]
[1617242552107,17.65665,1937.8,1937.7,0.28259876]
[1617242554811,17.65665,1937.8,1937.6,67.7066]
[1617242556012,17.65665,1937.8,1937.6,70.61355]
[1617242557716,17.65665,1937.8,1937.7,0.28167784]
[1617242559820,17.65665,1937.8,1937.6,67.7066]
[1617242563721,18.80745,1937.8,1937.6,67.7066]
[1617242568934,18.80745,1937.8,1937.3,2.90695]
[1617242569134,75.6929,1937.6,1936.8,4.07793316]
[1617242569335,75.6929,1937.6,1936.7,4.07838489]
[1617242569535,75.6929,1937.6,1936.9,0.28236704]
[1617242569938,75.6929,1937.6,1936.8,0.28241243]
[1617242570135,4.01845,1936.9,1936.8,0.28241243]
[1617242570537,4.01845,1936.9,1936.7,0.28279285]
[1617242571939,2.90695,1936.9,1936.8,5.26904282]
[1617242572540,2.90695,1936.9,1936.8,5.55187535]
[1617242573738,2.90695,1936.9,1936.8,0.28283253]
[1617242574638,2.90695,1936.9,1936.8,5.55905118]
[1617242575041,2.90695,1936.9,1936.8,0.28283253]
[1617242576041,2.90695,1936.9,1936.7,5.27664724]
[1617242576241,2.90695,1936.9,1936.8,4.10512443]
[1617242576442,2.90695,1936.9,1936.6,2.90695]
[1617242576640,4.10935,1936.9,1936.6,2.90695]
[1617242577042,84.4768,1936.7,1936.4,1.8149108]
[1617242577443,15.2923,1936.6,1936.4,1.8149108]
[1617242577846,15.2923,1936.6,1936.1,4.09867119]
[1617242578143,2.90695,1936.2,1936.0,4.09886383]
[1617242578343,3.83925,1936.2,1936.0,4.09886383]
[1617242579845,3.82985,1936.2,1936.0,4.09886383]
[1617242580045,3.82985,1936.2,1935.9,4.1005202]
[1617242580247,2.90695,1936.0,1935.9,4.1005202]
[1617242581348,2.90695,1936.0,1935.9,4.3838893]
[1617242581948,2.90695,1936.0,1935.9,4.1005202]
[1617242582149,2.90695,1936.0,1935.8,4.10154034]
[1617242583248,4.16485,1936.0,1935.5,84.4768]
[1617242583450,4.16485,1936.0,1935.1,4.09149095]
[1617242583649,85.3571,1935.9,1935.0,4.09274282]
[1617242583848,4.16485,1936.0,1935.0,4.09274282]
[1617242584050,85.3839,1935.4,1934.8,4.09613818]
[1617242584249,1.09073127,1934.9,1934.8,4.09613818]
[1617242584449,2.23843127,1934.9,1934.6,7.00559324]
[1617242584648,2.23843127,1934.9,1934.6,2.90695]
[1617242586253,1.1477,1934.9,1934.8,2.90695]
[1617242588257,4.05465,1934.9,1934.8,2.90695]
[1617242590958,62.8563,1934.8,1934.0,4.1235749]
[1617242591359,4.05465,1934.9,1934.0,4.1235749]
[1617242591560,62.9682,1934.0,1933.9,4.12284757]
[1617242592260,65.87515,1934.0,1933.9,7.02979757]
[1617242593161,65.87515,1934.0,1933.9,4.12284757]
[1617242593363,65.87515,1934.0,1933.7,4.12494312]
[1617242593560,65.87515,1934.0,1933.6,4.12681904]
[1617242594361,65.87515,1934.0,1933.4,5.30862881]
[1617242594362,3.87455,1933.7,1933.4,4.13121213]
[1617242594661,3.87455,1933.7,1933.1,2.90695]
[1617242595262,3.87455,1933.7,1931.4,1.1]
[1617242595463,82.6936,1932.9,1931.4,1.1]
[1617242596063,82.6936,1932.9,1931.3,81.6129]
[1617242596463,82.6936,1932.9,1932.8,2.90695]
[1617242598369,85.60055,1932.9,1932.8,2.90695]
[1617242599668,84.52835,1932.9,1932.8,2.90695]
[1617242600568,84.50835,1932.9,1931.3,81.6129]
[1617242601368,14.1089,1932.8,1931.3,81.6129]
[1617242601868,14.9477,1932.8,1931.3,81.6129]
[1617242602369,14.9477,1932.8,1932.6,2.90695]
[1617242604171,14.9477,1932.8,1931.3,81.6129]
[1617242604370,14.9477,1932.8,1932.3,2.90695]
[1617242606470,2.90695,1932.4,1932.3,2.90695]
[1617242607172,4.17625,1932.4,1932.3,2.90695]
[1617242608573,4.17625,1932.4,1931.0,60.4562]
[1617242608974,76.1954,1932.0,1931.0,60.4562]
[1617242609174,77.4035,1932.0,1931.0,60.4562]
[1617242609574,14.9476,1931.9,1931.0,60.4562]
[1617242609976,14.9476,1931.9,1930.1,1.1]
[1617242610175,14.9476,1931.9,1930.7,78.8662]
[1617242610375,14.9476,1931.9,1931.8,2.90695]
[1617242612577,17.85455,1931.9,1931.8,2.90695]
[1617242615782,79.03205,1931.9,1931.8,2.90695]
[1617242615984,17.85455,1931.9,1931.8,2.90695]